[Event "MČR v bleskovém šachu družstev 2019"]
[Site "Teplice, Czech Republic"]
[Date "2019.09.14"]
[Round "7.22"]
[White "Sott, Pavel"]
[Black "Vokoun, Jan"]
[Result "1-0"]
[TimeControl "3 mim. + 2 s"]
[BlackTitle "FM"]
[WhiteFideId "311910"]
[BlackFideId "301647"]
[WhiteElo "2167"]
[BlackElo "2123"]

1. e4 {[%clk 00:03:02]} {[%emt 00:00:02]} d6 {[%clk 00:03:04]} {[%emt
00:00:01]} 2. d4 {[%emt 00:00:02]} Nf6 {[%clk 00:03:03]} 3. Nc3 {[%clk
00:03:03]} {[%emt 00:00:01]} e5 {[%clk 00:03:04]} {[%emt 00:00:02]} 4. Nf3
{[%clk 00:03:02]} {[%emt 00:00:03]} Nbd7 {[%clk 00:03:05]} {[%emt 00:00:01]} 5.
Bc4 {[%clk 00:02:59]} {[%emt 00:00:05]} Be7 {[%clk 00:03:04]} {[%emt 00:00:02]}
6. Be3 {[%clk 00:02:59]} {[%emt 00:00:03]} c6 {[%clk 00:03:02]} {[%emt
00:00:04]} 7. h3 {[%clk 00:02:58]} {[%emt 00:00:03]} b5 {[%clk 00:02:57]}
{[%emt 00:00:06]} 8. Bb3 {[%clk 00:02:50]} {[%emt 00:00:11]} b4 {[%clk
00:02:46]} {[%emt 00:00:13]} 9. dxe5 {[%clk 00:02:40]} {[%emt 00:00:12]} dxe5
{[%clk 00:02:27]} {[%emt 00:00:21]} 10. Na4 {[%clk 00:02:07]} {[%emt 00:00:35]}
Nxe4 {[%clk 00:02:15]} {[%emt 00:00:14]} 11. O-O {[%clk 00:02:06]} {[%emt
00:00:03]} O-O {[%clk 00:01:55]} {[%emt 00:00:21]} 12. Re1 {[%clk 00:02:06]}
{[%emt 00:00:02]} Kh8 {[%clk 00:01:22]} {[%emt 00:00:36]} 13. Bxa7 {[%clk
00:01:48]} {[%emt 00:00:19]} Rxa7 {[%clk 00:01:06]} {[%emt 00:00:18]} 14. Rxe4
{[%clk 00:01:49]} {[%emt 00:00:01]} c5 {[%clk 00:00:49]} {[%emt 00:00:20]} 15.
Nxe5 {[%clk 00:01:32]} {[%emt 00:00:19]} Nxe5 {[%clk 00:00:45]} {[%emt
00:00:05]} 16. Rxe5 {[%clk 00:01:27]} {[%emt 00:00:07]} Qc7 {[%clk 00:00:13]}
{[%emt 00:00:35]} 17. Qh5 {[%clk 00:00:56]} {[%emt 00:00:32]} Bd6 {[%clk
00:00:06]} {[%emt 00:00:09]} 18. Re4 {[%clk 00:00:36]} {[%emt 00:00:23]} g6
{[%emt 00:00:07]} 19. Re5 {[%emt 00:00:19]} Be7 20. Bc4 {[%emt 00:00:25]} 1-0

[Event "MČR v bleskovém šachu družstev 2019"]
[Site "Teplice, Czech Republic"]
[Date "2019.09.14"]
[Round "7.23"]
[White "Postupa, Martin"]
[Black "Kupka, Frantisek"]
[Result "0-1"]
[TimeControl "3 mim. + 2 s"]
[WhiteFideId "325210"]
[BlackFideId "309540"]
[WhiteElo "1958"]
[BlackElo "2034"]

1. e4 {[%clk 00:03:03]} d6 {[%clk 00:03:03]} {[%emt 00:00:02]} 2. Nc3 {[%clk
00:03:04]} Nf6 {[%clk 00:03:02]} {[%emt 00:00:02]} 3. h3 {[%clk 00:03:05]}
{[%emt 00:00:01]} e5 {[%clk 00:03:00]} {[%emt 00:00:05]} 4. g3 {[%clk
00:03:06]} Be7 {[%clk 00:03:00]} {[%emt 00:00:03]} 5. Bg2 {[%clk 00:03:07]}
{[%emt 00:00:01]} O-O {[%clk 00:02:59]} {[%emt 00:00:02]} 6. Nge2 {[%clk
00:03:08]} {[%emt 00:00:02]} c5 {[%clk 00:02:55]} {[%emt 00:00:06]} 7. d3
{[%clk 00:03:08]} {[%emt 00:00:01]} Nc6 {[%clk 00:02:55]} {[%emt 00:00:02]} 8.
O-O {[%clk 00:03:08]} {[%emt 00:00:01]} Nd4 {[%clk 00:02:42]} {[%emt 00:00:16]}
9. f4 {[%clk 00:03:08]} {[%emt 00:00:02]} Nxe2+ {[%clk 00:02:23]} {[%emt
00:00:22]} 10. Qxe2 {[%clk 00:03:07]} {[%emt 00:00:02]} exf4 {[%clk 00:02:13]}
{[%emt 00:00:12]} 11. Bxf4 {[%clk 00:03:00]} {[%emt 00:00:08]} Be6 {[%clk
00:02:11]} {[%emt 00:00:04]} 12. e5 {[%clk 00:02:49]} {[%emt 00:00:14]} dxe5
{[%clk 00:02:09]} {[%emt 00:00:05]} 13. Bxe5 {[%clk 00:02:48]} {[%emt
00:00:02]} Qd7 {[%clk 00:01:56]} {[%emt 00:00:15]} 14. Kh2 {[%clk 00:02:47]}
{[%emt 00:00:02]} Rad8 {[%clk 00:01:55]} {[%emt 00:00:04]} 15. b3 {[%clk
00:02:32]} {[%emt 00:00:16]} b6 {[%clk 00:01:55]} {[%emt 00:00:03]} 16. a4
{[%clk 00:02:32]} {[%emt 00:00:01]} Rfe8 {[%clk 00:01:52]} {[%emt 00:00:05]} 17.
Qf3 {[%clk 00:02:12]} {[%emt 00:00:23]} Rf8 {[%clk 00:01:20]} {[%emt 00:00:35]}
18. Qc6 {[%clk 00:01:25]} {[%emt 00:00:48]} Qxc6 {[%clk 00:01:10]} {[%emt
00:00:12]} 19. Bxc6 {[%clk 00:01:25]} {[%emt 00:00:02]} Nd7 {[%clk 00:01:07]}
{[%emt 00:00:05]} 20. Bf4 {[%clk 00:01:14]} {[%emt 00:00:12]} Bf6 {[%clk
00:01:07]} {[%emt 00:00:03]} 21. Bd2 {[%clk 00:01:14]} {[%emt 00:00:01]} Ne5
{[%clk 00:01:06]} {[%emt 00:00:04]} 22. Be4 {[%clk 00:01:02]} {[%emt 00:00:13]}
Rd7 {[%clk 00:00:57]} {[%emt 00:00:12]} 23. Rae1 {[%clk 00:00:46]} {[%emt
00:00:17]} Ng6 {[%clk 00:00:53]} {[%emt 00:00:07]} 24. Bc6 {[%clk 00:00:39]}
{[%emt 00:00:09]} Rc7 {[%clk 00:00:50]} {[%emt 00:00:05]} 25. Bb5 {[%clk
00:00:39]} {[%emt 00:00:02]} Rd8 {[%clk 00:00:31]} {[%emt 00:00:21]} 26. Ne4
{[%clk 00:00:36]} {[%emt 00:00:05]} Be7 {[%clk 00:00:30]} {[%emt 00:00:03]} 27.
Ng5 {[%clk 00:00:23]} {[%emt 00:00:15]} Bxg5 {[%clk 00:00:27]} {[%emt
00:00:05]} 28. Bxg5 {[%clk 00:00:23]} {[%emt 00:00:02]} Rdc8 {[%clk 00:00:26]}
{[%emt 00:00:03]} 29. Ba6 {[%clk 00:00:18]} {[%emt 00:00:07]} Rf8 {[%clk
00:00:26]} {[%emt 00:00:01]} 30. Bd2 {[%clk 00:00:14]} {[%emt 00:00:06]} h6
{[%clk 00:00:26]} {[%emt 00:00:03]} 31. Bc3 {[%clk 00:00:15]} Bd5 {[%clk
00:00:26]} {[%emt 00:00:02]} 32. Re3 {[%clk 00:00:14]} {[%emt 00:00:03]} Re7
{[%clk 00:00:25]} {[%emt 00:00:03]} 33. Rfe1 {[%clk 00:00:14]} {[%emt
00:00:02]} Rfe8 {[%clk 00:00:23]} {[%emt 00:00:04]} 34. Rxe7 {[%clk 00:00:11]}
{[%emt 00:00:05]} Rxe7 35. Rxe7 Nxe7 {[%clk 00:00:25]} 36. a5 {[%clk 00:00:12]}
{[%emt 00:00:03]} Nc6 {[%clk 00:00:25]} {[%emt 00:00:02]} 37. axb6 {[%clk
00:00:12]} {[%emt 00:00:02]} axb6 {[%clk 00:00:26]} {[%emt 00:00:01]} 38. Bc4
{[%clk 00:00:13]} {[%emt 00:00:01]} Bxc4 39. bxc4 {[%clk 00:00:14]} g6 {[%clk
00:00:24]} {[%emt 00:00:02]} 40. Kg2 {[%clk 00:00:15]} {[%emt 00:00:01]} f5
{[%clk 00:00:25]} {[%emt 00:00:02]} 41. Kf3 {[%clk 00:00:16]} {[%emt 00:00:01]}
Kf7 {[%clk 00:00:26]} 42. Bd2 {[%clk 00:00:12]} {[%emt 00:00:06]} g5 {[%clk
00:00:25]} {[%emt 00:00:03]} 43. h4 {[%clk 00:00:13]} {[%emt 00:00:02]} Kg6
{[%clk 00:00:25]} {[%emt 00:00:01]} 44. c3 {[%clk 00:00:14]} {[%emt 00:00:01]}
Ne5+ {[%clk 00:00:24]} {[%emt 00:00:03]} 45. Ke2 {[%clk 00:00:14]} {[%emt
00:00:02]} gxh4 {[%clk 00:00:19]} {[%emt 00:00:07]} 46. gxh4 {[%clk 00:00:15]}
h5 {[%clk 00:00:15]} {[%emt 00:00:05]} 47. Bf4 {[%clk 00:00:16]} {[%emt
00:00:02]} Nd7 {[%clk 00:00:16]} {[%emt 00:00:01]} 48. Bc7 {[%clk 00:00:17]}
{[%emt 00:00:01]} Kf6 {[%clk 00:00:17]} {[%emt 00:00:01]} 49. Ke3 {[%clk
00:00:18]} Ke6 {[%clk 00:00:15]} {[%emt 00:00:04]} 50. d4 {[%clk 00:00:19]}
cxd4+ {[%clk 00:00:13]} {[%emt 00:00:04]} 51. cxd4 {[%clk 00:00:20]} Kf6 {[%clk
00:00:13]} {[%emt 00:00:02]} 52. Kf4 {[%clk 00:00:21]} Kg6 {[%clk 00:00:12]}
{[%emt 00:00:03]} 53. Bd8 {[%clk 00:00:21]} Nb8 {[%clk 00:00:06]} {[%emt
00:00:08]} 54. Ke5 {[%clk 00:00:21]} {[%emt 00:00:02]} Nc6+ {[%clk 00:00:07]}
{[%emt 00:00:01]} 55. Kd6 {[%clk 00:00:20]} {[%emt 00:00:03]} Nxd8 {[%clk
00:00:09]} {[%emt 00:00:02]} 56. Kc7 {[%clk 00:00:21]} Ne6+ {[%clk 00:00:10]}
{[%emt 00:00:01]} 0-1

[Event "MČR v bleskovém šachu družstev 2019"]
[Site "Teplice, Czech Republic"]
[Date "2019.09.14"]
[Round "7.24"]
[White "Janocko, Petr"]
[Black "Krouzel, Jaroslav"]
[Result "1-0"]
[TimeControl "3 mim. + 2 s"]
[WhiteFideId "320099"]
[BlackFideId "301566"]
[WhiteElo "2067"]
[BlackElo "2086"]

1. d4 {[%clk 00:03:02]} {[%emt 00:00:03]} f5 {[%clk 00:03:03]} 2. c4 {[%clk
00:03:03]} {[%emt 00:00:01]} Nf6 {[%clk 00:03:04]} 3. g3 {[%clk 00:03:04]}
{[%emt 00:00:01]} d6 {[%clk 00:03:05]} 4. Bg2 {[%clk 00:03:05]} g6 {[%clk
00:03:06]} {[%emt 00:00:01]} 5. Nc3 {[%clk 00:03:06]} Bg7 {[%clk 00:03:08]} 6.
Nf3 {[%clk 00:03:07]} {[%emt 00:00:02]} O-O {[%clk 00:03:08]} {[%emt 00:00:01]}
7. O-O {[%clk 00:03:07]} {[%emt 00:00:02]} Qe8 {[%clk 00:03:09]} 8. d5 {[%clk
00:03:05]} {[%emt 00:00:05]} a5 {[%clk 00:03:04]} {[%emt 00:00:07]} 9. Nd4
{[%clk 00:03:05]} {[%emt 00:00:02]} Na6 {[%clk 00:03:04]} {[%emt 00:00:02]} 10.
Ne6 {[%clk 00:03:02]} {[%emt 00:00:05]} Bxe6 {[%clk 00:03:03]} {[%emt
00:00:03]} 11. dxe6 {[%clk 00:03:03]} {[%emt 00:00:01]} c6 {[%clk 00:02:48]}
{[%emt 00:00:16]} 12. e4 {[%clk 00:03:03]} {[%emt 00:00:03]} fxe4 {[%clk
00:02:44]} {[%emt 00:00:05]} 13. Nxe4 {[%clk 00:03:04]} Nxe4 {[%clk 00:02:41]}
{[%emt 00:00:07]} 14. Bxe4 {[%clk 00:03:05]} {[%emt 00:00:02]} Nc5 {[%clk
00:02:40]} {[%emt 00:00:02]} 15. Bg2 {[%clk 00:03:04]} {[%emt 00:00:03]} Nxe6
{[%clk 00:02:36]} {[%emt 00:00:06]} 16. Re1 {[%clk 00:03:01]} {[%emt 00:00:05]}
Qf7 {[%clk 00:02:30]} {[%emt 00:00:08]} 17. Be3 {[%clk 00:02:59]} {[%emt
00:00:03]} Kh8 {[%clk 00:02:15]} {[%emt 00:00:18]} 18. Rb1 {[%clk 00:02:56]}
{[%emt 00:00:05]} Qf6 {[%clk 00:02:11]} {[%emt 00:00:05]} 19. h4 {[%clk
00:02:43]} {[%emt 00:00:16]} Rae8 {[%clk 00:02:05]} {[%emt 00:00:08]} 20. b4
{[%clk 00:02:35]} {[%emt 00:00:10]} axb4 {[%clk 00:01:40]} {[%emt 00:00:27]} 21.
Rxb4 {[%clk 00:02:36]} c5 {[%clk 00:01:09]} {[%emt 00:00:34]} 22. Rxb7 {[%clk
00:02:36]} {[%emt 00:00:02]} Nd4 {[%clk 00:01:08]} {[%emt 00:00:03]} 23. Qd2
{[%clk 00:02:20]} {[%emt 00:00:17]} Nf3+ {[%clk 00:00:49]} {[%emt 00:00:21]} 24.
Bxf3 {[%emt 00:00:01]} Qxf3 25. Qe2 {[%clk 00:02:20]} {[%emt 00:00:02]} Qxe2
{[%clk 00:00:50]} {[%emt 00:00:03]} 26. Rxe2 {[%clk 00:02:22]} {[%emt
00:00:01]} Bf6 {[%clk 00:00:50]} {[%emt 00:00:02]} 27. Bg5 {[%clk 00:02:14]}
{[%emt 00:00:10]} Bxg5 {[%clk 00:00:43]} {[%emt 00:00:10]} 28. hxg5 {[%clk
00:02:15]} Rf7 {[%clk 00:00:43]} {[%emt 00:00:01]} 29. a4 {[%clk 00:02:14]}
{[%emt 00:00:02]} Kg8 {[%clk 00:00:44]} {[%emt 00:00:01]} 30. a5 {[%clk
00:02:15]} Kf8 {[%clk 00:00:45]} 31. a6 {[%clk 00:02:16]} {[%emt 00:00:01]} Ra8
{[%clk 00:00:34]} {[%emt 00:00:14]} 32. a7 {[%clk 00:02:14]} {[%emt 00:00:04]}
Kg7 {[%clk 00:00:29]} {[%emt 00:00:07]} 33. Rexe7 {[%clk 00:02:14]} {[%emt
00:00:01]} 1-0

[Event "MČR v bleskovém šachu družstev 2019"]
[Site "Teplice, Czech Republic"]
[Date "2019.09.14"]
[Round "7.25"]
[White "Sykora, Ondrej"]
[Black "Bach, Markus"]
[Result "0-1"]
[TimeControl "3 mim. + 2 s"]
[BlackFideId "24603376"]
[WhiteElo "2122"]
[BlackElo "2259"]

1. e4 {[%clk 00:03:03]} {[%emt 00:11:12]} c6 {[%clk 00:03:01]} {[%emt
00:00:04]} 2. Nc3 {[%clk 00:03:02]} {[%emt 00:00:02]} d5 {[%clk 00:03:01]}
{[%emt 00:00:03]} 3. Nf3 {[%clk 00:03:03]} dxe4 4. Nxe4 {[%clk 00:03:03]} Nf6
{[%clk 00:03:03]} 5. Nxf6+ {[%clk 00:03:04]} {[%emt 00:00:02]} exf6 {[%clk
00:03:04]} 6. Bc4 {[%clk 00:03:03]} {[%emt 00:00:03]} Bd6 {[%clk 00:03:05]} 7.
d4 {[%clk 00:03:03]} {[%emt 00:00:03]} O-O {[%clk 00:03:06]} {[%emt 00:00:01]}
8. O-O {[%emt 00:00:03]} Bg4 9. c3 {[%emt 00:00:11]} Qc7 10. h3 {[%emt
00:00:02]} Bh5 11. Be3 {[%clk 00:02:28]} {[%emt 00:00:25]} Nd7 {[%clk
00:03:11]} {[%emt 00:00:02]} 12. Be2 {[%clk 00:02:27]} {[%emt 00:00:03]} Rfe8
{[%clk 00:03:07]} {[%emt 00:00:06]} 13. Re1 {[%clk 00:02:24]} {[%emt 00:00:04]}
Re7 {[%clk 00:02:34]} {[%emt 00:00:36]} 14. Nh4 {[%clk 00:02:23]} {[%emt
00:00:02]} Bxe2 {[%clk 00:02:19]} {[%emt 00:00:18]} 15. Rxe2 {[%clk 00:02:21]}
{[%emt 00:00:03]} g6 {[%clk 00:02:18]} {[%emt 00:00:03]} 16. Qc2 {[%clk
00:01:48]} {[%emt 00:00:35]} Rae8 {[%clk 00:02:17]} {[%emt 00:00:03]} 17. Rf1
{[%clk 00:01:49]} {[%emt 00:00:01]} h5 {[%clk 00:02:06]} {[%emt 00:00:13]} 18.
Bc1 {[%clk 00:01:43]} {[%emt 00:00:08]} Nf8 {[%clk 00:01:55]} {[%emt 00:00:13]}
0-1

[Event "MČR v bleskovém šachu družstev 2019"]
[Site "Teplice, Czech Republic"]
[Date "2019.09.14"]
[Round "7.26"]
[White "Buchcar, Tomas"]
[Black "Hacha, Ales"]
[Result "1-0"]
[TimeControl "3 mim. + 2 s"]
[WhiteFideId "328421"]
[WhiteElo "2145"]
[BlackElo "2065"]

1. c4 {[%clk 00:03:02]} Nf6 {[%clk 00:03:02]} {[%emt 00:00:03]} 2. g3 {[%clk
00:03:04]} e5 {[%clk 00:03:03]} 3. Bg2 {[%clk 00:03:04]} {[%emt 00:00:02]} Be7
{[%clk 00:03:01]} {[%emt 00:00:03]} 4. Nc3 {[%clk 00:03:05]} {[%emt 00:00:02]}
O-O {[%clk 00:03:02]} {[%emt 00:00:02]} 5. Nf3 {[%clk 00:03:05]} {[%emt
00:00:02]} Nc6 {[%clk 00:02:58]} {[%emt 00:00:05]} 6. O-O {[%clk 00:03:04]}
{[%emt 00:00:03]} d5 {[%clk 00:02:58]} {[%emt 00:00:01]} 7. cxd5 {[%clk
00:03:02]} {[%emt 00:00:05]} Nxd5 {[%clk 00:02:59]} {[%emt 00:00:02]} 8. a3
{[%clk 00:02:53]} {[%emt 00:00:10]} Be6 {[%clk 00:02:52]} {[%emt 00:00:09]} 9.
d3 {[%clk 00:02:24]} {[%emt 00:00:32]} Kh8 {[%clk 00:02:42]} {[%emt 00:00:12]}
10. Re1 {[%clk 00:02:22]} {[%emt 00:00:04]} Qd7 {[%clk 00:02:40]} {[%emt
00:00:04]} 11. Ng5 {[%clk 00:02:18]} {[%emt 00:00:06]} Nxc3 {[%clk 00:02:19]}
{[%emt 00:00:22]} 12. bxc3 {[%clk 00:02:14]} {[%emt 00:00:06]} Bd5 {[%clk
00:02:13]} {[%emt 00:00:08]} 13. e4 {[%clk 00:02:11]} {[%emt 00:00:05]} Be6
{[%clk 00:02:08]} {[%emt 00:00:07]} 14. Nxe6 {[%clk 00:02:10]} {[%emt
00:00:03]} Qxe6 {[%clk 00:02:09]} {[%emt 00:00:01]} 15. Qc2 {[%clk 00:01:53]}
{[%emt 00:00:19]} Rad8 {[%clk 00:02:06]} {[%emt 00:00:05]} 16. Rb1 {[%clk
00:01:48]} {[%emt 00:00:07]} Bc5 {[%clk 00:01:38]} {[%emt 00:00:29]} 17. Be3
{[%clk 00:01:27]} {[%emt 00:00:23]} Bb6 {[%clk 00:01:21]} {[%emt 00:00:20]} 18.
h3 {[%clk 00:01:16]} {[%emt 00:00:14]} Rd7 {[%clk 00:01:11]} {[%emt 00:00:12]}
19. Kh2 {[%clk 00:01:14]} {[%emt 00:00:03]} h6 {[%clk 00:01:12]} {[%emt
00:00:01]} 20. f4 {[%clk 00:01:12]} {[%emt 00:00:04]} Rfd8 {[%clk 00:01:10]}
{[%emt 00:00:04]} 21. f5 {[%clk 00:01:01]} {[%emt 00:00:14]} Qe7 {[%clk
00:01:11]} 22. Bf1 {[%clk 00:00:58]} {[%emt 00:00:05]} Qxa3 {[%clk 00:00:50]}
{[%emt 00:00:22]} 23. Ra1 {[%clk 00:00:41]} {[%emt 00:00:19]} Qe7 {[%clk
00:00:45]} {[%emt 00:00:07]} 24. Ra2 {[%clk 00:00:38]} {[%emt 00:00:04]} Kh7
{[%clk 00:00:31]} {[%emt 00:00:17]} 25. g4 {[%clk 00:00:27]} {[%emt 00:00:12]}
Qh4 {[%clk 00:00:26]} {[%emt 00:00:08]} 26. Qc1 {[%clk 00:00:18]} {[%emt
00:00:11]} g6 {[%clk 00:00:19]} {[%emt 00:00:10]} 27. Rg2 {[%clk 00:00:16]}
{[%emt 00:00:03]} gxf5 {[%clk 00:00:09]} {[%emt 00:00:12]} 28. gxf5 {[%clk
00:00:15]} {[%emt 00:00:03]} Bxe3 {[%emt 00:00:11]} 29. Qxe3 {[%emt 00:00:01]}
Qf4+ {[%emt 00:00:03]} 30. Qxf4 {[%emt 00:00:01]} exf4 31. Rf2 {[%emt
00:00:13]} 1-0

[Event "MČR v bleskovém šachu družstev 2019"]
[Site "Teplice, Czech Republic"]
[Date "2019.09.14"]
[Round "7.27"]
[White "Zima, Jan"]
[Black "Tresnak, Filip"]
[Result "1-0"]
[TimeControl "3 mim. + 2 s"]
[BlackFideId "333905"]
[WhiteElo "2048"]
[BlackElo "1931"]

1. e4 {[%clk 00:03:02]} {[%emt 00:00:01]} c6 {[%clk 00:03:01]} {[%emt
00:00:03]} 2. d4 {[%clk 00:03:03]} {[%emt 00:00:02]} d5 {[%clk 00:03:02]} 3. f3
{[%clk 00:03:04]} dxe4 {[%clk 00:03:02]} {[%emt 00:00:02]} 4. fxe4 {[%clk
00:03:05]} {[%emt 00:00:01]} Nf6 {[%clk 00:02:58]} {[%emt 00:00:06]} 5. Nc3
{[%clk 00:02:56]} {[%emt 00:00:12]} Bg4 {[%clk 00:02:46]} {[%emt 00:00:13]} 6.
Nf3 {[%clk 00:02:34]} {[%emt 00:00:24]} e6 {[%clk 00:02:24]} {[%emt 00:00:24]}
7. Be3 {[%clk 00:02:27]} {[%emt 00:00:09]} Nbd7 {[%clk 00:02:15]} {[%emt
00:00:11]} 8. Bd3 {[%clk 00:02:16]} {[%emt 00:00:13]} c5 {[%clk 00:02:01]}
{[%emt 00:00:16]} 9. dxc5 {[%clk 00:01:27]} {[%emt 00:00:52]} Bxc5 {[%clk
00:02:02]} {[%emt 00:00:01]} 10. Bxc5 Nxc5 {[%clk 00:02:03]} 11. Bb5+ {[%clk
00:01:05]} {[%emt 00:00:08]} Ke7 {[%clk 00:02:03]} {[%emt 00:00:01]} 12. Qe2
{[%clk 00:01:05]} {[%emt 00:00:03]} Qb6 {[%clk 00:01:50]} {[%emt 00:00:15]} 13.
O-O-O {[%clk 00:01:04]} {[%emt 00:00:02]} Rhd8 {[%clk 00:01:43]} {[%emt
00:00:09]} 14. e5 {[%clk 00:00:48]} {[%emt 00:00:19]} Nfe4 {[%clk 00:01:22]}
{[%emt 00:00:22]} 15. Nxe4 {[%clk 00:00:44]} {[%emt 00:00:07]} Nxe4 {[%clk
00:01:22]} {[%emt 00:00:02]} 16. Qxe4 {[%clk 00:00:43]} {[%emt 00:00:03]} Bxf3
{[%clk 00:01:20]} {[%emt 00:00:03]} 17. Qh4+ {[%clk 00:00:29]} {[%emt
00:00:16]} f6 {[%clk 00:01:11]} {[%emt 00:00:12]} 18. exf6+ {[%clk 00:00:29]}
{[%emt 00:00:02]} gxf6 {[%clk 00:01:04]} {[%emt 00:00:09]} 19. Qxh7+ {[%clk
00:00:30]} Kf8 {[%clk 00:01:04]} {[%emt 00:00:01]} 20. gxf3 {[%clk 00:00:27]}
{[%emt 00:00:06]} Qxb5 {[%clk 00:01:05]} {[%emt 00:00:01]} 21. Rxd8+ {[%clk
00:00:17]} {[%emt 00:00:11]} Rxd8 {[%clk 00:01:05]} {[%emt 00:00:02]} 22. Rg1
{[%clk 00:00:17]} {[%emt 00:00:02]} Qg5+ {[%clk 00:00:38]} {[%emt 00:00:29]} 23.
Rxg5 {[%clk 00:00:18]} {[%emt 00:00:01]} fxg5 {[%clk 00:00:40]} 24. Qh8+ {[%clk
00:00:17]} {[%emt 00:00:03]} Ke7 {[%clk 00:00:41]} 25. Qg7+ {[%clk 00:00:18]}
Ke8 {[%clk 00:00:40]} {[%emt 00:00:04]} 26. Qxb7 {[%clk 00:00:17]} {[%emt
00:00:03]} Rd7 {[%clk 00:00:37]} {[%emt 00:00:05]} 27. Qa8+ {[%clk 00:00:15]}
{[%emt 00:00:03]} Ke7 {[%clk 00:00:38]} 28. Qe4 {[%clk 00:00:15]} {[%emt
00:00:02]} Rd5 {[%clk 00:00:36]} {[%emt 00:00:05]} 29. c4 {[%clk 00:00:13]}
{[%emt 00:00:04]} Ra5 {[%clk 00:00:33]} {[%emt 00:00:04]} 30. a3 {[%clk
00:00:12]} {[%emt 00:00:04]} 1-0

[Event "MČR v bleskovém šachu družstev 2019"]
[Site "Teplice, Czech Republic"]
[Date "2019.09.14"]
[Round "8.1"]
[White "Kociscak, Jiri"]
[Black "Bernasek, Jan"]
[Result "1-0"]
[TimeControl "3 mim. + 2 s"]
[WhiteTitle "IM"]
[BlackTitle "GM"]
[WhiteFideId "322121"]
[BlackFideId "311995"]
[WhiteElo "2417"]
[BlackElo "2526"]

1. d4 {[%clk 00:03:03]} Nf6 {[%clk 00:03:03]} {[%emt 00:00:01]} 2. c4 {[%clk
00:03:03]} {[%emt 00:00:02]} e6 {[%clk 00:03:04]} 3. Nf3 {[%clk 00:03:04]}
{[%emt 00:00:02]} Bb4+ {[%clk 00:03:05]} 4. Bd2 {[%clk 00:03:05]} {[%emt
00:00:02]} c5 {[%clk 00:03:06]} 5. Bxb4 {[%clk 00:03:06]} {[%emt 00:00:01]}
cxb4 {[%clk 00:03:07]} 6. g3 {[%clk 00:03:07]} O-O {[%clk 00:03:07]} {[%emt
00:00:02]} 7. Bg2 {[%clk 00:03:08]} d6 {[%clk 00:03:08]} {[%emt 00:00:01]} 8.
O-O {[%clk 00:03:08]} {[%emt 00:00:02]} Nbd7 {[%clk 00:03:05]} {[%emt
00:00:05]} 9. Qb3 {[%clk 00:03:04]} {[%emt 00:00:06]} Qb6 {[%clk 00:02:50]}
{[%emt 00:00:16]} 10. a3 {[%clk 00:02:50]} {[%emt 00:00:17]} bxa3 {[%clk
00:02:50]} {[%emt 00:00:03]} 11. Qxb6 {[%clk 00:02:50]} {[%emt 00:00:01]} Nxb6
{[%clk 00:02:43]} {[%emt 00:00:09]} 12. Nxa3 {[%clk 00:02:51]} {[%emt
00:00:02]} Bd7 {[%clk 00:02:44]} 13. Nd2 {[%clk 00:02:34]} {[%emt 00:00:18]}
Rab8 {[%clk 00:02:28]} {[%emt 00:00:18]} 14. Rfc1 {[%clk 00:01:54]} {[%emt
00:00:42]} a6 {[%clk 00:02:20]} {[%emt 00:00:11]} 15. e4 {[%clk 00:01:47]}
{[%emt 00:00:09]} Bc6 {[%clk 00:01:59]} {[%emt 00:00:24]} 16. b4 {[%clk
00:01:35]} {[%emt 00:00:14]} Rfd8 {[%clk 00:01:53]} {[%emt 00:00:08]} 17. d5
{[%clk 00:01:16]} {[%emt 00:00:21]} exd5 {[%clk 00:01:29]} {[%emt 00:00:26]} 18.
exd5 {[%clk 00:01:18]} Bd7 {[%clk 00:01:26]} {[%emt 00:00:05]} 19. Nb3 {[%clk
00:01:17]} {[%emt 00:00:04]} Rbc8 {[%clk 00:01:17]} {[%emt 00:00:11]} 20. Na5
{[%clk 00:01:17]} {[%emt 00:00:01]} Rc7 {[%clk 00:01:08]} {[%emt 00:00:11]} 21.
Rd1 {[%clk 00:01:04]} {[%emt 00:00:15]} Na4 {[%clk 00:00:50]} {[%emt 00:00:19]}
22. Rac1 {[%clk 00:00:58]} {[%emt 00:00:08]} Rdc8 {[%clk 00:00:39]} {[%emt
00:00:13]} 23. c5 {[%clk 00:00:19]} {[%emt 00:00:41]} b6 {[%clk 00:00:40]}
{[%emt 00:00:01]} 24. Nc6 {[%clk 00:00:20]} Bxc6 {[%clk 00:00:20]} {[%emt
00:00:22]} 25. dxc6 {[%clk 00:00:22]} {[%emt 00:00:01]} dxc5 {[%clk 00:00:16]}
{[%emt 00:00:07]} 26. bxc5 {[%clk 00:00:21]} {[%emt 00:00:03]} b5 {[%clk
00:00:13]} {[%emt 00:00:05]} 27. Nc2 {[%clk 00:00:15]} {[%emt 00:00:08]} Nc3
{[%clk 00:00:14]} 28. Re1 {[%clk 00:00:12]} {[%emt 00:00:05]} a5 {[%clk
00:00:14]} {[%emt 00:00:02]} 29. Nd4 {[%clk 00:00:13]} b4 {[%clk 00:00:14]}
{[%emt 00:00:03]} 30. Rxc3 {[%clk 00:00:09]} {[%emt 00:00:06]} bxc3 {[%clk
00:00:14]} {[%emt 00:00:01]} 31. Rc1 {[%clk 00:00:10]} a4 {[%clk 00:00:10]}
{[%emt 00:00:06]} 32. Rxc3 {[%clk 00:00:11]} Ra7 {[%clk 00:00:11]} 33. Nb5
{[%clk 00:00:12]} {[%emt 00:00:01]} Ra5 {[%clk 00:00:12]} {[%emt 00:00:01]} 34.
Nd6 {[%clk 00:00:13]} {[%emt 00:00:02]} Rc7 {[%clk 00:00:14]} 35. Ra3 {[%clk
00:00:14]} {[%emt 00:00:01]} Rxc5 {[%clk 00:00:14]} {[%emt 00:00:02]} 36. Rxa4
{[%clk 00:00:15]} {[%emt 00:00:01]} g6 {[%clk 00:00:15]} {[%emt 00:00:01]} 37.
h4 {[%clk 00:00:15]} Kg7 {[%clk 00:00:16]} 38. Rf4 {[%clk 00:00:15]} {[%emt
00:00:03]} h5 {[%clk 00:00:16]} {[%emt 00:00:02]} 39. Rxf6 {[%clk 00:00:16]}
{[%emt 00:00:01]} Rc1+ {[%emt 00:00:06]} 40. Kh2 Rd1 {[%clk 00:00:13]} {[%emt
00:00:01]} 41. Ne8+ {[%clk 00:00:18]} {[%emt 00:00:02]} Kf8 {[%clk 00:00:14]}
1-0